bitfinex-derivatives/quotes_BTCF0:USTF0_20250822
["timestamp","ask_amount","ask_price","bid_price","bid_amount"]
[1755861544123,0.42552,112440.0,112430.0,0.34736718]
[1755861544529,0.30264,112440.0,112430.0,0.34736718]
[1755861544727,0.30264,112440.0,112430.0,0.70816718]
[1755861545123,0.30264,112440.0,112430.0,0.79713018]
[1755861545515,0.20657,112440.0,112430.0,1.04713018]
[1755861545722,0.18392,112440.0,112430.0,1.35328105]
[1755861546522,0.18392,112440.0,112430.0,1.38528102]
[1755861546927,0.18392,112440.0,112430.0,1.36129733]
[1755861547118,0.18392,112440.0,112430.0,1.38519758]
[1755861547522,0.18392,112440.0,112430.0,1.36129733]
[1755861548226,0.18392,112440.0,112430.0,1.35318786]
[1755861548829,0.18392,112440.0,112430.0,1.38518783]
[1755861549228,0.18392,112440.0,112430.0,1.35318786]
[1755861551232,0.2456,112440.0,112430.0,0.73205768]
[1755861551439,0.30264,112440.0,112430.0,0.82102098]
[1755861551634,0.30264,112440.0,112430.0,0.79713048]
[1755861553237,0.30264,112440.0,112430.0,0.70816718]
[1755861553841,0.30264,112440.0,112430.0,0.79713048]
[1755861556944,0.30264,112440.0,112430.0,0.70816718]
[1755861557147,0.30264,112440.0,112430.0,0.79713048]
[1755861557944,0.30264,112440.0,112430.0,0.70816718]
[1755861558140,0.30264,112440.0,112430.0,0.79713048]
[1755861558344,0.30264,112440.0,112430.0,0.70816718]
[1755861558750,0.30264,112440.0,112430.0,0.70820718]
[1755861560753,0.13220056,112440.0,112430.0,0.70820718]
[1755861561049,0.38220056,112440.0,112430.0,0.32400718]
[1755861561639,0.38220056,112440.0,112430.0,0.34897718]
[1755861563354,0.38220056,112440.0,112430.0,0.06681]
[1755861563550,0.66436774,112440.0,112430.0,0.04184]
[1755861563749,1.02596774,112440.0,112430.0,0.00204]
[1755861564240,1.02516774,112440.0,112430.0,0.00204]
[1755861564443,1.02516774,112440.0,112430.0,0.01183]
[1755861564644,1.02516774,112440.0,112430.0,0.02669]
[1755861564848,0.74300056,112440.0,112430.0,0.02669]
[1755861565853,0.81391476,112440.0,112430.0,0.02669]
[1755861566958,0.81391476,112440.0,112430.0,0.01183]
[1755861569650,0.56391476,112440.0,112430.0,0.01183]
[1755861570458,0.56391476,112440.0,112430.0,0.0357205]
[1755861570858,0.56391476,112440.0,112430.0,0.0259305]
[1755861571357,0.84608194,112440.0,112430.0,0.0259305]
[1755861572256,0.56391476,112440.0,112430.0,0.0357205]
[1755861573151,0.84608194,112440.0,112430.0,0.0357205]
[1755861573552,0.56391476,112440.0,112430.0,0.0357205]
[1755861573752,0.84608194,112440.0,112430.0,0.0357205]
[1755861573954,0.56391476,112440.0,112430.0,0.0357205]
[1755861574351,0.56391476,112440.0,112430.0,0.31788768]
[1755861574551,0.56391476,112440.0,112430.0,0.0357205]
[1755861574860,0.56391476,112440.0,112430.0,0.29399718]
[1755861575162,0.56391476,112440.0,112430.0,0.01183]
[1755861575459,0.84608194,112440.0,112430.0,0.00204]
[1755861576959,1.09608194,112440.0,112430.0,0.00204]
[1755861577157,0.04621,112430.0,112410.0,0.37788765]
[1755861577355,0.07216,112420.0,112410.0,0.37744768]
[1755861577558,0.11837,112420.0,112410.0,0.37540768]
[1755861577759,0.11837,112420.0,112410.0,0.0952805]
[1755861577966,0.11837,112420.0,112410.0,0.37744768]
[1755861578462,0.11837,112420.0,112410.0,0.34917768]
[1755861578961,0.13814049,112420.0,112410.0,0.37944768]
[1755861579861,0.13814049,112420.0,112410.0,0.38044768]
[1755861580449,0.38814049,112420.0,112410.0,0.37840768]
[1755861580653,0.74894049,112420.0,112410.0,0.37944768]
[1755861580958,0.74994049,112420.0,112410.0,0.38044768]
[1755861585069,0.74994049,112420.0,112410.0,0.0982805]
[1755861585264,0.74994049,112420.0,112410.0,0.38044768]
[1755861586171,0.74994049,112420.0,112410.0,0.38054021]
[1755861589975,0.38914049,112420.0,112410.0,0.38054021]
[1755861591377,0.74994049,112420.0,112410.0,0.09837303]
[1755861591575,0.38914049,112420.0,112410.0,0.38054021]
[1755861591762,0.38914049,112420.0,112410.0,0.41254018]
[1755861596079,0.38914049,112420.0,112410.0,0.130373]
[1755861596278,0.38914049,112420.0,112410.0,0.38855715]
[1755861600375,0.38914049,112420.0,112410.0,0.3887009]
[1755861601682,0.38914049,112420.0,112410.0,0.38071834]
[1755861602783,0.38914049,112420.0,112410.0,0.09840741]
[1755861603082,0.38914049,112420.0,112410.0,0.38071834]
[1755861603284,0.38914049,112420.0,112410.0,1.27382927]
[1755861603285,0.10676049,112420.0,112410.0,1.27382927]
[1755861603483,0.09293049,112420.0,112410.0,1.27382927]
[1755861603685,0.04390049,112420.0,112410.0,1.27382927]
[1755861603883,0.02513,112420.0,112410.0,1.27382927]
[1755861604286,0.02513,112420.0,112410.0,1.27373401]
[1755861605273,0.02513,112420.0,112410.0,1.30573398]
[1755861605678,0.02513,112420.0,112410.0,1.28171657]
[1755861606584,0.002,112420.0,112410.0,1.28171657]
[1755861606997,0.05633,112430.0,112420.0,0.3523033]
[1755861607285,0.12920056,112440.0,112430.0,0.07004]
[1755861607587,0.12920056,112440.0,112430.0,0.73712494]
[1755861607887,0.12920056,112440.0,112430.0,0.98712494]
[1755861608982,0.03499056,112440.0,112430.0,0.98812494]
[1755861609182,0.01248056,112440.0,112430.0,0.99614591]
[1755861609382,0.01448056,112440.0,112430.0,0.99714591]
[1755861610086,0.01448056,112440.0,112430.0,1.08610941]
[1755861610285,0.08571,112460.0,112450.0,0.07004]
[1755861610587,0.05633,112460.0,112450.0,0.7131033]
[1755861610786,0.02251,112460.0,112450.0,1.43682932]
[1755861610988,0.02251,112460.0,112450.0,1.46887193]
[1755861611185,0.02251,112460.0,112450.0,1.4368024]
[1755861611485,0.07193,112470.0,112450.0,1.3953424]
[1755861611687,0.11972,112470.0,112460.0,0.7370547]
[1755861612790,0.12172,112470.0,112460.0,0.7370547]
[1755861613091,0.12472,112470.0,112460.0,0.7380547]
[1755861613291,0.12472,112470.0,112460.0,0.7141033]
[1755861613494,0.07858,112470.0,112460.0,1.0540431]
[1755861613687,0.02951,112470.0,112460.0,1.3602578]
[1755861614394,0.007,112470.0,112460.0,1.3602578]
[1755861614792,0.02251,112480.0,112470.0,0.02858]
[1755861614985,0.02251,112480.0,112470.0,0.9539066]
[1755861615385,0.48052,112490.0,112480.0,0.07004]
[1755861615904,0.73132,112490.0,112480.0,0.02532]
[1755861616191,0.73132,112490.0,112480.0,0.00951]
[1755861616492,0.73132,112490.0,112480.0,0.2917733]
[1755861616691,0.07193,112480.0,112470.0,0.2842633]
[1755861616887,0.11972,112480.0,112470.0,0.2927733]
[1755861617789,0.37052,112480.0,112470.0,0.2927733]
[1755861617993,0.73132,112480.0,112470.0,0.001]
[1755861618795,0.65939,112480.0,112460.0,0.3216833]
[1755861619095,0.11719,112470.0,112460.0,0.3227233]
[1755861619288,0.11719,112470.0,112460.0,0.04046]
[1755861619485,0.47799,112470.0,112460.0,0.3280233]
[1755861619996,0.47799,112470.0,112460.0,0.3513733]
[1755861620195,0.47799,112470.0,112460.0,0.3543733]
[1755861620999,0.47799,112470.0,112460.0,0.3267233]
[1755861621201,0.47799,112470.0,112460.0,0.3237233]
[1755861621395,0.72899,112470.0,112460.0,0.3267233]
[1755861621595,0.72899,112470.0,112460.0,0.3121433]
[1755861621903,0.72899,112470.0,112460.0,0.2957733]
[1755861622201,1.0112533,112470.0,112460.0,0.004]
[1755861622392,1.0122533,112470.0,112460.0,0.003]
[1755861622894,1.0112533,112470.0,112450.0,0.2822633]
[1755861623100,0.9399533,112470.0,112460.0,0.001]
[1755861623300,0.9419533,112470.0,112460.0,0.001]
[1755861623489,0.7632533,112470.0,112460.0,0.001]
[1755861623803,0.11719,112450.0,112440.0,0.7133633]
[1755861624097,0.11619,112450.0,112440.0,0.6879733]
[1755861624602,0.11619,112450.0,112440.0,0.7143633]
[1755861625597,0.13324542,112450.0,112440.0,0.7143633]
[1755861625797,0.13224542,112450.0,112440.0,0.7143633]
[1755861626402,0.13224542,112450.0,112440.0,0.7153633]
[1755861627006,0.13324542,112450.0,112440.0,0.7173633]
[1755861627204,0.13424542,112450.0,112440.0,0.7163633]
[1755861627602,0.13524542,112450.0,112440.0,0.7153633]
[1755861628306,0.10253542,112450.0,112440.0,0.7153633]
[1755861628607,0.13524542,112450.0,112440.0,0.7153633]
[1755861630318,0.13524542,112450.0,112440.0,0.3545633]
[1755861630912,0.74604542,112450.0,112440.0,0.3545633]
[1755861632020,0.74604542,112450.0,112440.0,0.0723]
[1755861632316,0.74604542,112450.0,112440.0,0.3545633]
[1755861634809,0.74604542,112450.0,112440.0,0.37846518]
[1755861635118,0.74604542,112450.0,112440.0,0.3545633]
[1755861637318,0.74604542,112450.0,112440.0,0.37846518]
[1755861638417,0.74604542,112450.0,112440.0,0.3545633]
[1755861639012,0.74604542,112450.0,112440.0,0.0723]
[1755861639212,0.74604542,112450.0,112440.0,0.3545633]
[1755861639413,0.74604542,112450.0,112440.0,0.3233133]
[1755861639616,0.74604542,112450.0,112440.0,0.04105]
[1755861640119,0.74604542,112450.0,112440.0,0.01051]
[1755861641519,0.74604542,112450.0,112440.0,0.2927733]
[1755861641720,0.74604542,112450.0,112440.0,0.01051]
[1755861644619,0.74604542,112450.0,112440.0,0.2927733]
[1755861644819,0.74604542,112450.0,112440.0,0.01051]
[1755861645019,1.02830872,112450.0,112440.0,0.001]
[1755861645927,0.74604542,112450.0,112440.0,0.001]
[1755861646327,0.74604542,112450.0,112440.0,0.01051]
[1755861646516,0.74604542,112450.0,112440.0,0.02468]
[1755861646722,0.11719,112440.0,112420.0,0.39887188]
[1755861646924,0.47799,112440.0,112430.0,0.2822633]
[1755861647126,0.47799,112440.0,112430.0,0.2982333]
[1755861647428,0.79849146,112440.0,112430.0,0.3548733]
[1755861648925,0.79949146,112440.0,112430.0,0.07361]
[1755861649316,0.79949146,112440.0,112430.0,0.3558733]
[1755861649725,0.79949146,112440.0,112430.0,0.3568733]
[1755861650021,0.80149146,112440.0,112430.0,0.3568733]
[1755861650425,0.80149146,112440.0,112430.0,0.3558733]
[1755861650621,0.80249146,112440.0,112430.0,0.07361]
[1755861650915,0.80249146,112440.0,112430.0,0.3558733]
[1755861651629,0.80249146,112440.0,112430.0,0.07361]
[1755861651928,0.80249146,112440.0,112430.0,0.03999]
[1755861653231,0.80249146,112440.0,112430.0,0.04403]
[1755861653533,0.80249146,112440.0,112430.0,0.07361]
[1755861653733,0.80249146,112440.0,112430.0,0.3558733]
[1755861654127,0.80249146,112440.0,112430.0,0.07361]
[1755861654426,0.80249146,112440.0,112430.0,0.3518333]
[1755861654724,0.80249146,112440.0,112430.0,0.3558733]
[1755861655322,0.76978146,112440.0,112430.0,0.3558733]
[1755861655524,0.80188146,112440.0,112430.0,0.3558733]
[1755861657042,0.80188146,112440.0,112430.0,0.07361]
[1755861657230,0.80188146,112440.0,112430.0,0.3558733]
[1755861657629,0.80188146,112440.0,112430.0,0.07361]
[1755861657934,0.80188146,112440.0,112430.0,0.3558733]
[1755861658129,0.44108146,112440.0,112430.0,0.3558733]
[1755861658330,0.44108146,112440.0,112430.0,0.37977518]
[1755861659931,0.12058,112440.0,112430.0,0.99057518]
[1755861660130,0.07401,112440.0,112430.0,0.99057518]
[1755861660331,0.0254,112440.0,112430.0,1.02270929]
[1755861660937,0.10667,112440.0,112430.0,0.37964599]
[1755861661238,0.12032,112440.0,112430.0,1.02270929]
[1755861661438,0.10667,112440.0,112430.0,1.02270929]
[1755861662342,0.12032,112440.0,112430.0,1.02270929]
[1755861662541,0.12032,112440.0,112430.0,0.99871591]
[1755861664745,0.10667,112440.0,112430.0,0.99871591]
[1755861665436,0.12032,112440.0,112430.0,0.99871591]
[1755861666640,0.12032,112440.0,112430.0,0.63791591]
[1755861666841,0.12032,112440.0,112430.0,0.09357667]
[1755861666842,0.73112,112440.0,112430.0,0.09357667]
[1755861667046,0.73112,112440.0,112430.0,0.04997667]
[1755861667247,1.0133833,112440.0,112430.0,0.03451667]
[1755861667437,0.73112,112440.0,112430.0,0.03451667]
[1755861669952,0.73112,112440.0,112430.0,0.31677997]
[1755861671350,0.80211248,112440.0,112430.0,0.31677997]
[1755861671949,0.80211248,112440.0,112430.0,0.03451667]
[1755861672149,0.80211248,112440.0,112430.0,0.02500667]
[1755861672747,0.80211248,112440.0,112430.0,0.03461667]
[1755861674551,0.80211248,112440.0,112430.0,0.06409667]
[1755861674742,0.80211248,112440.0,112430.0,0.07459667]
[1755861674943,0.80211248,112440.0,112430.0,0.37997997]
[1755861675753,0.80211248,112440.0,112430.0,0.35281997]
[1755861676553,0.80211248,112440.0,112430.0,0.34635997]
[1755861678055,0.80211248,112440.0,112430.0,0.33233997]
[1755861678259,0.80211248,112440.0,112430.0,0.03461667]
[1755861679854,0.60623982,112440.0,112430.0,0.03461667]
[1755861680059,0.64479982,112440.0,112430.0,0.11009667]
[1755861680356,0.64479982,112440.0,112430.0,0.39235997]
[1755861680755,0.64479982,112440.0,112430.0,0.11009667]
[1755861681055,0.64479982,112440.0,112430.0,0.39235997]
[1755861681459,0.64479982,112440.0,112430.0,0.37863997]
[1755861682060,0.69651982,112440.0,112430.0,0.37863997]
[1755861682458,0.69651982,112440.0,112430.0,0.39235997]
[1755861682759,0.69651982,112440.0,112430.0,0.42512997]
[1755861684560,0.69651982,112440.0,112430.0,0.39235997]
[1755861685052,0.69651982,112440.0,112430.0,0.37863997]
[1755861685351,0.97878312,112440.0,112430.0,0.05824667]
[1755861685553,0.97878312,112440.0,112430.0,0.02500667]
[1755861685763,0.97878312,112440.0,112430.0,0.001]
[1755861688660,1.20932642,112440.0,112420.0,0.0334]
[1755861688863,0.7333433,112430.0,112420.0,0.0334]
[1755861689157,0.05172,112420.0,112410.0,0.07112667]
[1755861689456,0.04835,112400.0,112390.0,0.08164739]
[1755861689760,0.7550933,112400.0,112390.0,0.07459789]
[1755861689958,0.06031,112400.0,112390.0,0.3865633]
[1755861690155,0.02113,112400.0,112390.0,0.9973633]
[1755861690660,0.02013,112400.0,112390.0,0.9981633]
[1755861690959,0.02013,112400.0,112390.0,1.0001633]
[1755861691159,0.406,112410.0,112390.0,1.0001633]
[1755861691358,0.45435,112410.0,112400.0,0.3705233]
[1755861691560,0.45435,112410.0,112400.0,0.4002833]
[1755861692854,0.45535,112410.0,112400.0,0.4022833]
[1755861693158,0.45635,112410.0,112400.0,0.4022833]
[1755861694063,0.45535,112410.0,112400.0,0.4032833]
[1755861697364,0.45535,112410.0,112400.0,0.12102]
[1755861697862,0.45535,112410.0,112400.0,0.4032833]
[1755861698068,0.45535,112410.0,112400.0,0.12102]
[1755861698266,0.45535,112410.0,112400.0,0.4032833]
[1755861698463,0.06131,112410.0,112400.0,0.6532833]
[1755861698664,0.03292,112410.0,112400.0,1.0140833]
[1755861699065,0.02313,112410.0,112400.0,1.0140833]
[1755861699366,0.05637,112410.0,112400.0,1.0140833]
[1755861699767,0.09455,112410.0,112400.0,0.37102]
[1755861699973,0.7560933,112410.0,112400.0,0.06616]
[1755861700272,1.0068933,112410.0,112400.0,0.003]
[1755861700665,1.2891566,112410.0,112400.0,0.003]
[1755861700969,1.0068933,112410.0,112400.0,0.003]
[1755861702762,1.4298766,112410.0,112400.0,0.003]
[1755861702963,0.11203,112400.0,112390.0,0.04944]
[1755861703163,0.7550933,112400.0,112390.0,0.0334]
[1755861703471,0.7550933,112400.0,112390.0,0.05549]
[1755861704064,0.7550933,112400.0,112390.0,0.11802]
[1755861704065,0.47283,112400.0,112390.0,0.11802]
[1755861704269,0.45435,112400.0,112390.0,0.4022833]
[1755861704657,0.09355,112400.0,112390.0,0.4022833]
[1755861705064,0.09355,112400.0,112390.0,0.4042833]
[1755861705263,0.09455,112400.0,112390.0,0.4042833]
[1755861706375,0.09455,112400.0,112390.0,0.12202]
[1755861706572,0.09455,112400.0,112390.0,0.4042833]
[1755861715179,0.03292,112400.0,112390.0,0.6542833]
[1755861715382,0.03292,112400.0,112390.0,1.0150833]
[1755861715383,0.02313,112400.0,112390.0,1.0150833]
[1755861717184,0.001,112400.0,112390.0,1.0150833]
[1755861719981,0.02322,112400.0,112390.0,1.0150833]
[1755861720780,0.03251,112400.0,112390.0,1.0150833]
[1755861720987,0.09411,112400.0,112390.0,0.73282]
[1755861721287,0.09411,112400.0,112390.0,1.0150833]
[1755861723188,0.45491,112400.0,112390.0,0.37202]
[1755861723389,0.09411,112400.0,112390.0,0.6542833]
[1755861724386,0.0602,112400.0,112390.0,0.12202]
[1755861724592,0.6448533,112400.0,112390.0,0.12202]
[1755861726794,0.36259,112400.0,112390.0,0.12202]
[1755861726994,0.54783,112400.0,112390.0,0.12202]
[1755861727396,0.54783,112400.0,112390.0,0.4042833]
[1755861727597,0.54783,112400.0,112390.0,0.12202]
[1755861729899,0.52935,112400.0,112390.0,0.4042833]
[1755861731500,0.52935,112400.0,112390.0,0.12202]
[1755861731700,0.52935,112400.0,112390.0,0.4042833]
[1755861732201,0.46775,112400.0,112390.0,0.4042833]
[1755861732500,0.20846,112400.0,112390.0,1.0150833]
[1755861732891,0.001,112400.0,112390.0,1.0158833]
[1755861733196,0.001,112400.0,112390.0,1.04789788]
[1755861734098,0.02322,112400.0,112390.0,1.04789788]
[1755861736500,0.001,112400.0,112390.0,1.04789788]
[1755861736889,0.001,112400.0,112390.0,1.13689278]
[1755861737294,0.5954,112420.0,112390.0,1.11326278]
[1755861737494,0.61429,112420.0,112410.0,0.4017333]
[1755861738198,0.64733,112420.0,112410.0,0.4017333]
[1755861738794,0.42469,112420.0,112410.0,0.4017333]
[1755861739194,0.42669,112420.0,112410.0,0.4027333]
[1755861739593,0.43965,112420.0,112410.0,0.4027333]
[1755861739995,0.07985,112420.0,112410.0,0.4027333]
[1755861740197,0.09566,112420.0,112410.0,0.4027333]
[1755861741093,0.0827,112420.0,112410.0,0.4027333]
[1755861741401,0.06689,112420.0,112410.0,0.7635333]
[1755861741601,0.0827,112420.0,112410.0,0.7635333]
[1755861741806,0.09566,112420.0,112410.0,0.7635333]
[1755861742604,0.06689,112420.0,112410.0,0.7635333]
[1755861743001,0.03385,112420.0,112410.0,0.7635333]
[1755861743593,0.06689,112420.0,112410.0,0.7635333]
[1755861744805,0.05748,112420.0,112410.0,0.7635333]
[1755861746008,0.02444,112420.0,112410.0,0.7635333]
[1755861746406,0.05748,112420.0,112410.0,0.7635333]
[1755861747112,0.06689,112420.0,112410.0,0.7635333]
[1755861749008,0.02444,112420.0,112410.0,0.7635333]
[1755861749711,0.05748,112420.0,112410.0,0.7635333]
[1755861749916,0.06689,112420.0,112410.0,0.7635333]
[1755861752123,0.02144,112420.0,112410.0,0.6924533]
[1755861752809,0.02144,112420.0,112410.0,0.7635333]
[1755861753716,0.53683886,112430.0,112410.0,0.6924533]
[1755861753920,0.53683886,112430.0,112420.0,0.4017333]
[1755861753921,0.57977886,112430.0,112420.0,0.4017333]
[1755861754124,0.60575886,112430.0,112420.0,0.4017333]
[1755861755323,0.60675886,112430.0,112420.0,0.4017333]
[1755861755526,0.60775886,112430.0,112420.0,0.4017333]
[1755861755917,0.60675886,112430.0,112420.0,0.4017333]
[1755861756119,0.60775886,112430.0,112420.0,0.4027333]
[1755861757824,0.62623886,112430.0,112420.0,0.4027333]
[1755861759127,0.60775886,112430.0,112420.0,0.4027333]
[1755861759420,0.58177886,112430.0,112420.0,0.4027333]
[1755861759622,0.20801886,112430.0,112420.0,0.6527333]
[1755861760123,0.19220886,112430.0,112420.0,0.6527333]
[1755861760319,0.16507886,112430.0,112420.0,0.93491812]
[1755861761424,0.18651886,112430.0,112420.0,0.93491812]
[1755861762222,0.18651886,112430.0,112420.0,1.29571812]
[1755861762427,0.18651886,112430.0,112420.0,1.01353754]
[1755861763226,0.18651886,112430.0,112420.0,0.65273754]
[1755861763527,0.18651886,112430.0,112420.0,1.01353754]
[1755861764627,0.16507886,112430.0,112420.0,1.01353754]
[1755861765628,0.16507886,112430.0,112420.0,0.73127]
[1755861765829,0.16507886,112430.0,112420.0,1.01353754]
[1755861768730,0.16507886,112430.0,112420.0,1.10250874]
[1755861768930,0.16507886,112430.0,112420.0,1.01353754]
[1755861769829,0.16507886,112430.0,112420.0,1.10250874]
[1755861770931,0.16507886,112430.0,112420.0,1.01353754]
[1755861771631,0.16507886,112430.0,112420.0,1.10250874]
[1755861772431,0.16507886,112430.0,112420.0,1.01353754]
[1755861772624,0.16507886,112430.0,112420.0,1.03129685]
[1755861773434,0.16507886,112430.0,112420.0,1.12026805]
[1755861774531,0.09007886,112430.0,112420.0,1.12026805]
[1755861774732,0.09007886,112430.0,112420.0,1.15228263]
[1755861777329,0.09007886,112430.0,112420.0,1.97492263]
[1755861778735,0.08907886,112430.0,112420.0,2.04747938]
[1755861778933,0.09007886,112430.0,112420.0,2.04747938]
[1755861779737,0.07507886,112430.0,112420.0,2.04747938]
[1755861780035,0.10250298,112450.0,112440.0,0.11992]
[1755861780331,0.10250298,112450.0,112440.0,1.86785508]
[1755861780734,0.12503298,112450.0,112440.0,1.04525508]
[1755861781137,0.12503298,112450.0,112440.0,1.58558754]
[1755861781935,0.10450298,112450.0,112440.0,1.58558754]
[1755861782432,0.10850298,112450.0,112440.0,1.58658754]
[1755861783037,0.13103298,112450.0,112440.0,1.58658754]
[1755861783237,0.31123114,112460.0,112440.0,1.58658754]
[1755861783439,0.34983114,112460.0,112450.0,0.40218754]
[1755861784439,0.34983114,112460.0,112450.0,0.40206776]
[1755861785439,0.39971114,112460.0,112450.0,0.40206776]
[1755861786138,0.40071114,112460.0,112450.0,0.40206776]
[1755861786340,0.41494291,112460.0,112450.0,0.40206776]
[1755861786841,0.41694291,112460.0,112450.0,0.40306776]
[1755861790344,0.69909067,112460.0,112450.0,0.40306776]
[1755861790543,0.69909067,112460.0,112450.0,0.12092]
[1755861790743,0.69909067,112460.0,112450.0,0.40306776]
[1755861793140,0.69829067,112460.0,112450.0,0.12092]
[1755861793346,0.69829067,112460.0,112450.0,0.40306776]
[1755861793941,0.70260067,112460.0,112450.0,0.12092]
[1755861794255,1.23554843,112460.0,112440.0,0.02469]
[1755861794561,1.51949776,112450.0,112440.0,0.30683776]
[1755861795049,1.51949776,112450.0,112440.0,0.02469]
[1755861795548,1.51949776,112450.0,112440.0,0.30683776]
[1755861795739,1.51949776,112450.0,112440.0,0.30783776]
[1755861796136,1.23735,112450.0,112440.0,0.30783776]
[1755861796448,1.52159786,112450.0,112440.0,0.02569]
[1755861797240,0.73783786,112450.0,112440.0,0.02569]
[1755861797438,1.56015786,112450.0,112440.0,0.02569]
[1755861797639,1.81095786,112450.0,112440.0,0.001]
[1755861797843,0.05347,112440.0,112430.0,0.02576]
[1755861798049,0.45669,112440.0,112430.0,0.02576]
[1755861799046,0.98893786,112440.0,112430.0,0.001]
[1755861799448,0.98993786,112440.0,112430.0,0.002]
[1755861799646,0.98993786,112440.0,112430.0,0.02776]
[1755861800947,0.98993786,112440.0,112430.0,0.002]
[1755861801445,1.29796221,112440.0,112420.0,0.02576]
[1755861801644,1.56097786,112430.0,112420.0,0.04825]
[1755861802849,1.56297786,112430.0,112420.0,0.04925]
[1755861803050,1.81297786,112430.0,112420.0,0.001]
[1755861803441,1.81297786,112430.0,112420.0,0.04925]
[1755861804554,1.81293786,112430.0,112420.0,0.04925]
[1755861804745,1.81293786,112430.0,112420.0,0.02676]
[1755861804944,1.81293786,112430.0,112420.0,0.04925]
[1755861806051,0.99065786,112430.0,112420.0,0.04925]
[1755861806246,1.81297786,112430.0,112420.0,0.04925]
[1755861808551,1.81297786,112430.0,112420.0,0.02676]
[1755861808752,1.81297786,112430.0,112420.0,0.04925]
[1755861808952,1.81297786,112430.0,112420.0,0.05861]
[1755861809152,1.81297786,112430.0,112420.0,0.04925]
[1755861809352,1.81297786,112430.0,112420.0,0.02676]
[1755861809752,1.56297786,112430.0,112420.0,0.02676]
[1755861809955,1.56297786,112430.0,112420.0,0.001]
[1755861810558,1.81297786,112430.0,112420.0,0.001]
[1755861812759,1.81289786,112430.0,112420.0,0.001]
[1755861813458,1.81285786,112430.0,112420.0,0.001]
[1755861815560,2.31285786,112430.0,112420.0,0.001]
[1755861815856,1.49065786,112430.0,112420.0,0.001]
[1755861816062,2.31281786,112430.0,112420.0,0.001]
[1755861817861,0.05336,112420.0,112410.0,0.02576]
[1755861818064,0.73865786,112420.0,112410.0,0.02576]
[1755861818260,1.02121748,112420.0,112410.0,0.02576]
[1755861819163,1.27321748,112420.0,112410.0,0.002]
[1755861819969,2.09533748,112420.0,112410.0,0.002]
[1755861822264,1.53053,112420.0,112410.0,0.002]
[1755861822470,1.81296555,112420.0,112410.0,0.002]
[1755861823267,2.31296555,112420.0,112410.0,0.002]
[1755861823467,1.49084555,112420.0,112410.0,0.002]
[1755861823668,2.31292555,112420.0,112410.0,0.002]
[1755861823969,2.31292555,112420.0,112410.0,0.02776]
[1755861826170,2.31288555,112420.0,112410.0,0.02776]
[1755861827866,2.03045,112420.0,112410.0,0.002]
[1755861828068,2.31288555,112420.0,112410.0,0.002]
[1755861828370,2.25952555,112420.0,112400.0,0.04279966]
[1755861828570,0.73654555,112410.0,112400.0,0.04279966]
[1755861828966,0.73654555,112410.0,112400.0,0.02512]
[1755861829470,0.73654555,112410.0,112400.0,0.04874]
[1755861829666,0.73754555,112410.0,112400.0,0.04974]
[1755861830469,1.55958555,112410.0,112400.0,0.10862]
[1755861830860,1.55958555,112410.0,112400.0,0.10662]
[1755861831170,1.55958555,112410.0,112400.0,0.10862]
[1755861831371,1.55958555,112410.0,112400.0,0.0754]
[1755861833169,1.27715,112410.0,112400.0,0.10862]
[1755861833373,1.55958555,112410.0,112400.0,0.10862]
[1755861833774,1.55958555,112410.0,112400.0,0.12364]
[1755861836669,1.55958555,112410.0,112380.0,0.29749555]
[1755861836870,0.76415555,112400.0,112390.0,0.09552]
[1755861838069,1.30368,112400.0,112390.0,0.09552]
[1755861838377,1.3294154,112400.0,112390.0,0.09552]
[1755861838676,1.3294154,112400.0,112390.0,0.12064]
[1755861838877,1.3294154,112400.0,112390.0,0.12364]
[1755861839478,1.3304154,112400.0,112390.0,0.12564]
[1755861839876,1.61285095,112400.0,112390.0,0.12564]
[1755861841472,1.3304154,112400.0,112390.0,0.12564]
[1755861844382,1.61288923,112400.0,112390.0,0.40811383]
[1755861847092,1.61288923,112400.0,112390.0,0.12564]
[1755861847490,1.89536306,112400.0,112390.0,0.40811383]
[1755861847691,1.89536306,112400.0,112390.0,0.12564]
[1755861847995,0.12092,112390.0,112380.0,0.40315383]
[1755861848194,0.76419383,112390.0,112380.0,0.40315383]
[1755861849800,0.76519383,112390.0,112380.0,0.40415383]
[1755861850001,0.76519383,112390.0,112380.0,0.40515383]
[1755861851904,0.48272,112390.0,112380.0,0.40515383]
[1755861852298,0.76519383,112390.0,112380.0,0.40515383]
[1755861852791,0.76519383,112390.0,112380.0,0.12268]
[1755861852994,0.76519383,112390.0,112380.0,0.40515383]
[1755861854793,0.76519383,112390.0,112380.0,0.35691383]
[1755861855004,0.76519383,112390.0,112380.0,0.00204]
[1755861858306,1.01519383,112390.0,112380.0,0.00204]
[1755861861211,0.73272,112390.0,112380.0,0.00204]
[1755861861510,1.83683383,112390.0,112380.0,0.30715383]
[1755861861911,1.83683383,112390.0,112380.0,0.00204]
[1755861862106,1.83683383,112390.0,112380.0,0.28451383]
[1755861862307,1.55436,112390.0,112380.0,0.00204]
[1755861862609,1.83683383,112390.0,112380.0,0.00204]
[1755861864314,1.01519383,112390.0,112380.0,0.00204]
[1755861864513,1.83679383,112390.0,112380.0,0.37485383]
[1755861865010,1.83679383,112390.0,112380.0,0.05951]
[1755861865215,1.83679383,112390.0,112380.0,0.34198383]
[1755861867115,1.83679383,112390.0,112380.0,0.05951]
[1755861868112,1.55432,112390.0,112380.0,0.05951]
[1755861868311,1.83675383,112390.0,112380.0,0.39031383]
[1755861868619,1.01519383,112390.0,112380.0,0.39031383]
[1755861868819,1.83671383,112390.0,112380.0,0.40437383]
[1755861869008,1.55424,112390.0,112380.0,0.40437383]
[1755861869212,1.83671383,112390.0,112380.0,0.40437383]
[1755861869713,1.58671383,112390.0,112380.0,0.40437383]
[1755861870618,1.58671383,112390.0,112380.0,0.39031383]
[1755861873622,1.58671383,112390.0,112380.0,0.40437383]
[1755861873922,1.58667383,112390.0,112380.0,0.40437383]
[1755861874224,0.40439383,112390.0,112380.0,0.40437383]
[1755861874520,1.22583383,112390.0,112380.0,0.40437383]
[1755861875423,1.58663383,112390.0,112380.0,0.40437383]
[1755861876018,1.58663383,112390.0,112380.0,0.1219]
[1755861876224,1.58663383,112390.0,112380.0,0.40437383]
[1755861876917,1.58663383,112390.0,112380.0,0.37150383]
[1755861877117,1.58663383,112390.0,112380.0,0.40437383]
[1755861877415,1.58663383,112390.0,112380.0,0.1219]
[1755861877613,1.58663383,112390.0,112380.0,0.40437383]
[1755861880724,1.30416,112390.0,112380.0,0.40437383]
[1755861881028,1.58663383,112390.0,112380.0,0.1219]